[Event "Early-Titled-Tuesday-Blitz-April-16-2024"]
[Site "Chess.com"]
[Date "2024.04.16"]
[Round "4"]
[White "Lion-Al-Messi"]
[Black "Aleksandar-Topalov"]
[Result "1-0"]
[WhiteElo "2582"]
[BlackElo "2339"]
[TimeControl "180+1"]
[EndTime "8:38:57 PDT"]
[Termination "Lion-Al-Messi won by resignation"]

1. e4 {[%clk 0:03:00.9]} 1... e6 {[%clk 0:02:59.4]} 2. d4 {[%clk 0:03:00.2]}
2... d5 {[%clk 0:02:59.3]} 3. exd5 {[%clk 0:03:00.7]} 3... exd5 {[%clk
0:02:58.6]} 4. Bd3 {[%clk 0:03:00.5]} 4... Bd6 {[%clk 0:02:56.9]} 5. Nc3 {[%clk
0:03:00.2]} 5... c6 {[%clk 0:02:51.4]} 6. Nge2 {[%clk 0:03:00]} 6... Ne7 {[%clk
0:02:51.2]} 7. Bg5 {[%clk 0:03:00]} 7... f6 {[%clk 0:02:49.8]} 8. Bf4 {[%clk
0:03:00.3]} 8... Bf5 {[%clk 0:02:45.3]} 9. Bxd6 {[%clk 0:03:00.4]} 9... Qxd6
{[%clk 0:02:44.1]} 10. Ng3 {[%clk 0:03:00.9]} 10... Bxd3 {[%clk 0:02:42.8]} 11.
Qxd3 {[%clk 0:03:01.8]} 11... O-O {[%clk 0:02:40.7]} 12. O-O-O {[%clk
0:03:00.5]} 12... Na6 {[%clk 0:02:30.3]} 13. h4 {[%clk 0:02:58.9]} 13... Qf4+
{[%clk 0:02:16.8]} 14. Kb1 {[%clk 0:02:51.1]} 14... Nb4 {[%clk 0:02:10.4]} 15.
Qe2 {[%clk 0:02:49.6]} 15... Rae8 {[%clk 0:01:57.7]} 16. Qe6+ {[%clk 0:02:48.6]}
16... Kh8 {[%clk 0:01:55.9]} 17. a3 {[%clk 0:01:58.3]} 17... Qxf2 {[%clk
0:01:41.4]} 18. axb4 {[%clk 0:01:58]} 18... Qxg3 {[%clk 0:01:40.9]} 19. Qd7
{[%clk 0:01:54.2]} 19... Qb8 {[%clk 0:01:40.3]} 20. h5 {[%clk 0:01:47.5]} 20...
h6 {[%clk 0:01:39.6]} 21. Rde1 {[%clk 0:01:40.4]} 21... Ng8 {[%clk 0:01:39.1]}
22. b5 {[%clk 0:01:28.6]} 22... Rd8 {[%clk 0:01:27.4]} 23. Qf5 {[%clk
0:01:26.5]} 23... Qc7 {[%clk 0:01:16.4]} 24. Re2 {[%clk 0:01:10.7]} 24... Qb6
{[%clk 0:00:47.3]} 25. Qg4 {[%clk 0:00:59.9]} 25... cxb5 {[%clk 0:00:37]} 26.
Rhe1 {[%clk 0:00:59.9]} 26... b4 {[%clk 0:00:36.6]} 27. Re6 {[%clk 0:01:00.1]}
27... Qa5 {[%clk 0:00:26.9]} 28. Ne2 {[%clk 0:00:59.8]} 28... b3 {[%clk
0:00:26.4]} 29. Nf4 {[%clk 0:00:50.9]} 29... bxc2+ {[%clk 0:00:25.6]} 30. Kxc2
{[%clk 0:00:49.9]} 30... Rc8+ {[%clk 0:00:19.5]} 31. Kb1 {[%clk 0:00:49.3]}
31... Rfd8 {[%clk 0:00:14.5]} 32. Ng6+ {[%clk 0:00:49.1]} 32... Kh7 {[%clk
0:00:14]} 33. Qf5 {[%clk 0:00:47.9]} 33... Qa4 {[%clk 0:00:10.8]} 34. Nf8+
{[%clk 0:00:47.1]} 1-0

[Event "Early-Titled-Tuesday-Blitz-April-16-2024"]
[Site "Chess.com"]
[Date "2024.04.16"]
[Round "4"]
[White "emeli_chess"]
[Black "enriquebutti"]
[Result "1-0"]
[WhiteElo "2464"]
[BlackElo "2167"]
[TimeControl "180+1"]
[EndTime "8:39:03 PDT"]
[Termination "emeli_chess won by resignation"]

1. d4 {[%clk 0:03:00.9]} 1... Nf6 {[%clk 0:02:53.1]} 2. c4 {[%clk 0:03:00.7]}
2... e6 {[%clk 0:02:52.8]} 3. Nc3 {[%clk 0:03:00.9]} 3... c5 {[%clk 0:02:51.8]}
4. d5 {[%clk 0:03:00.6]} 4... exd5 {[%clk 0:02:51.7]} 5. cxd5 {[%clk 0:03:01.2]}
5... d6 {[%clk 0:02:51.8]} 6. Nf3 {[%clk 0:03:01.8]} 6... g6 {[%clk 0:02:51.5]}
7. h3 {[%clk 0:03:02.2]} 7... Bg7 {[%clk 0:02:51.1]} 8. e4 {[%clk 0:03:02.9]}
8... O-O {[%clk 0:02:50.6]} 9. Bd3 {[%clk 0:03:02.9]} 9... Re8 {[%clk
0:02:46.3]} 10. O-O {[%clk 0:03:02.2]} 10... c4 {[%clk 0:02:46.1]} 11. Bxc4
{[%clk 0:02:55.2]} 11... Nxe4 {[%clk 0:02:45.5]} 12. Nxe4 {[%clk 0:02:51.6]}
12... Rxe4 {[%clk 0:02:45.1]} 13. Bd3 {[%clk 0:02:51.5]} 13... Rb4 {[%clk
0:02:43.6]} 14. Rb1 {[%clk 0:02:46.7]} 14... Nd7 {[%clk 0:02:40.3]} 15. b3
{[%clk 0:02:46.7]} 15... Nc5 {[%clk 0:02:39]} 16. Ba3 {[%clk 0:02:31.1]} 16...
Nxd3 {[%clk 0:02:38.3]} 17. Qxd3 {[%clk 0:02:27.2]} 17... Bf5 {[%clk 0:02:36.9]}
18. Qd2 {[%clk 0:02:21.7]} 18... Rb5 {[%clk 0:02:30.6]} 19. Rbc1 {[%clk
0:02:17.8]} 19... Qa5 {[%clk 0:02:21.7]} 20. Qxa5 {[%clk 0:02:11.1]} 20... Rxa5
{[%clk 0:02:19.4]} 21. Bxd6 {[%clk 0:02:11.3]} 21... Rxa2 {[%clk 0:02:11.9]} 22.
Be5 {[%clk 0:02:10.4]} 22... Be4 {[%clk 0:02:09.2]} 23. Bxg7 {[%clk 0:02:04.6]}
23... Kxg7 {[%clk 0:02:07.3]} 24. Rfd1 {[%clk 0:01:46.3]} 24... Rd8 {[%clk
0:01:59.2]} 25. d6 {[%clk 0:01:45.8]} 25... Bf5 {[%clk 0:01:46.1]} 26. Rc7
{[%clk 0:01:41.4]} 26... Ra6 {[%clk 0:01:44.7]} 27. d7 {[%clk 0:01:25.3]} 27...
Rb6 {[%clk 0:01:44]} 28. Nd4 {[%clk 0:01:10.8]} 28... Kf6 {[%clk 0:01:28.6]} 29.
Nxf5 {[%clk 0:01:06.9]} 29... gxf5 {[%clk 0:01:28]} 30. Rd3 {[%clk 0:01:03.6]}
30... Ke7 {[%clk 0:01:22]} 31. g3 {[%clk 0:00:49.4]} 31... Rd6 {[%clk
0:01:10.4]} 32. Rxd6 {[%clk 0:00:36.1]} 32... Kxd6 {[%clk 0:01:09.5]} 33. Rxb7
{[%clk 0:00:36.5]} 33... Rxd7 {[%clk 0:01:09.3]} 34. Rb8 {[%clk 0:00:33.7]}
34... Rc7 {[%clk 0:01:04.7]} 35. Kg2 {[%clk 0:00:32.4]} 35... a5 {[%clk
0:01:03.2]} 36. Kf3 {[%clk 0:00:27.7]} 36... Ke6 {[%clk 0:01:01.9]} 37. Rb5
{[%clk 0:00:25.5]} 37... Rc3+ {[%clk 0:01:01.2]} 38. Kf4 {[%clk 0:00:24.4]}
38... h6 {[%clk 0:00:59.3]} 39. Re5+ {[%clk 0:00:23.8]} 39... Kd6 {[%clk
0:00:58.7]} 40. Rxa5 {[%clk 0:00:23.3]} 40... Rxb3 {[%clk 0:00:58.1]} 41. Kxf5
{[%clk 0:00:23.7]} 1-0

[Event "Early-Titled-Tuesday-Blitz-April-16-2024"]
[Site "Chess.com"]
[Date "2024.04.16"]
[Round "4"]
[White "dmosesov"]
[Black "LeoWin2012"]
[Result "1-0"]
[WhiteElo "2621"]
[BlackElo "2310"]
[TimeControl "180+1"]
[EndTime "8:39:05 PDT"]
[Termination "dmosesov won by checkmate"]

1. Nf3 {[%clk 0:03:00.9]} 1... c6 {[%clk 0:02:45.3]} 2. c4 {[%clk 0:03:00.9]}
2... d6 {[%clk 0:02:44.3]} 3. d4 {[%clk 0:02:58.8]} 3... Bg4 {[%clk 0:02:44.1]}
4. e4 {[%clk 0:02:40.9]} 4... Nf6 {[%clk 0:02:41.5]} 5. h3 {[%clk 0:02:40.2]}
5... Bxf3 {[%clk 0:02:39.1]} 6. Qxf3 {[%clk 0:02:41.1]} 6... e5 {[%clk
0:02:37.7]} 7. d5 {[%clk 0:02:32.1]} 7... cxd5 {[%clk 0:02:36.1]} 8. cxd5 {[%clk
0:02:30.3]} 8... Nbd7 {[%clk 0:02:07.5]} 9. Nc3 {[%clk 0:02:30.2]} 9... Nc5
{[%clk 0:02:07.2]} 10. Be3 {[%clk 0:02:09]} 10... Rc8 {[%clk 0:02:03.3]} 11. Be2
{[%clk 0:01:52]} 11... a6 {[%clk 0:02:03.1]} 12. O-O {[%clk 0:01:52]} 12... Be7
{[%clk 0:02:02.1]} 13. Rac1 {[%clk 0:01:52.5]} 13... O-O {[%clk 0:02:01.6]} 14.
b4 {[%clk 0:01:18.4]} 14... Ncd7 {[%clk 0:02:00.5]} 15. a3 {[%clk 0:01:18.9]}
15... b5 {[%clk 0:02:00.3]} 16. a4 {[%clk 0:01:06.7]} 16... bxa4 {[%clk
0:01:56.5]} 17. Bxa6 {[%clk 0:01:05.8]} 17... Ra8 {[%clk 0:01:56.4]} 18. b5
{[%clk 0:00:56.1]} 18... Nc5 {[%clk 0:01:54.7]} 19. Bxc5 {[%clk 0:00:52.7]}
19... dxc5 {[%clk 0:01:55.6]} 20. Nxa4 {[%clk 0:00:53.3]} 20... Nd7 {[%clk
0:01:54.2]} 21. Rfd1 {[%clk 0:00:36]} 21... Bd6 {[%clk 0:01:54.3]} 22. Nb2
{[%clk 0:00:36.6]} 22... Nb6 {[%clk 0:01:53.1]} 23. Nd3 {[%clk 0:00:31]} 23...
Qe7 {[%clk 0:01:51.9]} 24. Qe3 {[%clk 0:00:29.1]} 24... f5 {[%clk 0:01:39.2]}
25. exf5 {[%clk 0:00:20.9]} 25... Rxf5 {[%clk 0:01:36.2]} 26. Nxc5 {[%clk
0:00:20.4]} 26... Raf8 {[%clk 0:01:16.9]} 27. Rf1 {[%clk 0:00:13.3]} 27... Nd7
{[%clk 0:01:14.1]} 28. Ne6 {[%clk 0:00:13.3]} 28... Bb8 {[%clk 0:00:50]} 29.
Nxf8 {[%clk 0:00:12.6]} 29... Qxf8 {[%clk 0:00:48.4]} 30. Rc8 {[%clk 0:00:12]}
30... e4 {[%clk 0:00:48.4]} 31. Rxf8+ {[%clk 0:00:11.9]} 31... Rxf8 {[%clk
0:00:49.3]} 32. Qxe4 {[%clk 0:00:12.6]} 32... Nc5 {[%clk 0:00:49.9]} 33. Qc4
{[%clk 0:00:12.7]} 33... Nxa6 {[%clk 0:00:50.3]} 34. bxa6 {[%clk 0:00:13.6]}
34... Ba7 {[%clk 0:00:50.5]} 35. Qc6 {[%clk 0:00:14]} 35... Kh8 {[%clk
0:00:50.1]} 36. Qb7 {[%clk 0:00:14.5]} 36... Bc5 {[%clk 0:00:49.9]} 37. a7
{[%clk 0:00:14.9]} 37... Bxa7 {[%clk 0:00:50.1]} 38. Qxa7 {[%clk 0:00:15.8]}
38... h5 {[%clk 0:00:50.7]} 39. d6 {[%clk 0:00:16.3]} 39... h4 {[%clk 0:00:51]}
40. Qe7 {[%clk 0:00:16]} 40... Rd8 {[%clk 0:00:51.9]} 41. Qxd8+ {[%clk
0:00:16.1]} 41... Kh7 {[%clk 0:00:52.4]} 42. Qxh4+ {[%clk 0:00:17]} 42... Kg6
{[%clk 0:00:52.1]} 43. d7 {[%clk 0:00:17.9]} 43... Kf7 {[%clk 0:00:53]} 44. d8=Q
{[%clk 0:00:18.2]} 44... Ke6 {[%clk 0:00:53.8]} 45. Qe4+ {[%clk 0:00:18.1]}
45... Kf7 {[%clk 0:00:53.6]} 46. Qf5# {[%clk 0:00:18.6]} 1-0

[Event "Early-Titled-Tuesday-Blitz-April-16-2024"]
[Site "Chess.com"]
[Date "2024.04.16"]
[Round "4"]
[White "ValentunHulka"]
[Black "UNSTOPPABLE_LEGEND"]
[Result "1-0"]
[WhiteElo "2794"]
[BlackElo "2562"]
[TimeControl "180+1"]
[EndTime "8:39:08 PDT"]
[Termination "ValentunHulka won by resignation"]

1. c4 {[%clk 0:03:00.9]} 1... Nf6 {[%clk 0:02:57]} 2. g3 {[%clk 0:02:59.7]} 2...
e6 {[%clk 0:02:56.5]} 3. Bg2 {[%clk 0:02:59.4]} 3... d5 {[%clk 0:02:56.8]} 4.
Nf3 {[%clk 0:03:00]} 4... Be7 {[%clk 0:02:55.9]} 5. O-O {[%clk 0:02:58.9]} 5...
O-O {[%clk 0:02:56.5]} 6. b3 {[%clk 0:02:57.3]} 6... d4 {[%clk 0:02:56]} 7. Bb2
{[%clk 0:02:57]} 7... c5 {[%clk 0:02:55.6]} 8. Ne5 {[%clk 0:02:55]} 8... Qc7
{[%clk 0:02:49.6]} 9. f4 {[%clk 0:02:50.8]} 9... Nfd7 {[%clk 0:02:41.8]} 10. Nd3
{[%clk 0:02:37.8]} 10... Nc6 {[%clk 0:02:41.8]} 11. e4 {[%clk 0:02:37.8]} 11...
e5 {[%clk 0:02:40.1]} 12. Na3 {[%clk 0:02:31]} 12... a6 {[%clk 0:02:39.1]} 13.
Nc2 {[%clk 0:02:31.1]} 13... Rb8 {[%clk 0:02:35.4]} 14. fxe5 {[%clk 0:02:28.1]}
14... Ndxe5 {[%clk 0:02:34.3]} 15. Nf4 {[%clk 0:02:28.5]} 15... Be6 {[%clk
0:02:31]} 16. d3 {[%clk 0:02:26.2]} 16... b5 {[%clk 0:02:30.4]} 17. Bc1 {[%clk
0:02:19.9]} 17... Qd7 {[%clk 0:02:25.8]} 18. Ne1 {[%clk 0:02:09.9]} 18... Rbd8
{[%clk 0:02:16.2]} 19. Bd2 {[%clk 0:02:01.8]} 19... Ng4 {[%clk 0:02:13.1]} 20.
Nc2 {[%clk 0:01:57.8]} 20... Nce5 {[%clk 0:02:08.9]} 21. h3 {[%clk 0:01:51.1]}
21... Ne3 {[%clk 0:01:46.5]} 22. Nxe3 {[%clk 0:01:39.4]} 22... dxe3 {[%clk
0:01:47.4]} 23. Bxe3 {[%clk 0:01:40.3]} 23... Nxd3 {[%clk 0:01:46.6]} 24. Nd5
{[%clk 0:01:39]} 24... Ne5 {[%clk 0:01:39.5]} 25. Qc2 {[%clk 0:01:34.6]} 25...
bxc4 {[%clk 0:01:24]} 26. bxc4 {[%clk 0:01:33.8]} 26... Nc6 {[%clk 0:01:24.5]}
27. Kh2 {[%clk 0:01:29.6]} 27... Nd4 {[%clk 0:01:22.5]} 28. Qd3 {[%clk
0:01:21.6]} 28... Nc6 {[%clk 0:01:02.5]} 29. Rab1 {[%clk 0:01:17.3]} 29... Bd6
{[%clk 0:00:59.3]} 30. Bf4 {[%clk 0:01:12.9]} 30... Be5 {[%clk 0:00:44.9]} 31.
Rb6 {[%clk 0:01:07.7]} 31... f6 {[%clk 0:00:35.9]} 32. Rxc6 {[%clk 0:00:50]}
32... Bxd5 {[%clk 0:00:10]} 33. Qxd5+ {[%clk 0:00:43.5]} 33... Qxd5 {[%clk
0:00:07.1]} 34. cxd5 {[%clk 0:00:44.4]} 34... Rfe8 {[%clk 0:00:06.7]} 35. Bxe5
{[%clk 0:00:43.7]} 35... Rxe5 {[%clk 0:00:07.6]} 36. Rxc5 {[%clk 0:00:44.3]} 1-0

[Event "Early-Titled-Tuesday-Blitz-April-16-2024"]
[Site "Chess.com"]
[Date "2024.04.16"]
[Round "4"]
[White "ChessSG1"]
[Black "XDPS"]
[Result "0-1"]
[WhiteElo "2426"]
[BlackElo "2851"]
[TimeControl "180+1"]
[EndTime "8:39:10 PDT"]
[Termination "XDPS won by resignation"]

1. c4 {[%clk 0:03:00.9]} 1... g6 {[%clk 0:02:59.1]} 2. g3 {[%clk 0:03:01.4]}
2... Bg7 {[%clk 0:02:59.7]} 3. Bg2 {[%clk 0:03:02]} 3... Nf6 {[%clk 0:02:59.5]}
4. Nc3 {[%clk 0:03:02]} 4... O-O {[%clk 0:03:00.1]} 5. e4 {[%clk 0:03:02.5]}
5... e5 {[%clk 0:02:59.6]} 6. Nge2 {[%clk 0:03:02.8]} 6... c5 {[%clk 0:02:59.4]}
7. d3 {[%clk 0:03:02]} 7... d6 {[%clk 0:02:59.9]} 8. O-O {[%clk 0:03:02.2]} 8...
Nc6 {[%clk 0:03:00.3]} 9. h3 {[%clk 0:02:57.4]} 9... a6 {[%clk 0:03:00.1]} 10.
f4 {[%clk 0:02:54.2]} 10... Rb8 {[%clk 0:02:59.1]} 11. a4 {[%clk 0:02:46.7]}
11... exf4 {[%clk 0:02:52.8]} 12. Nxf4 {[%clk 0:02:31.5]} 12... Nd7 {[%clk
0:02:51.1]} 13. Kh2 {[%clk 0:02:29]} 13... Nde5 {[%clk 0:02:50.9]} 14. Ncd5
{[%clk 0:02:25.4]} 14... b5 {[%clk 0:02:47.9]} 15. axb5 {[%clk 0:01:41.2]} 15...
axb5 {[%clk 0:02:48.8]} 16. b3 {[%clk 0:01:41.8]} 16... bxc4 {[%clk 0:02:28.9]}
17. bxc4 {[%clk 0:01:39.4]} 17... Nxc4 {[%clk 0:01:59.2]} 18. Ra2 {[%clk
0:01:07.4]} 18... N4e5 {[%clk 0:01:50.1]} 19. Be3 {[%clk 0:00:55.9]} 19... Be6
{[%clk 0:01:17.7]} 20. Qd2 {[%clk 0:00:38.2]} 20... Bxd5 {[%clk 0:01:16.1]} 21.
Nxd5 {[%clk 0:00:35.1]} 21... Nb4 {[%clk 0:01:16.3]} 22. Nxb4 {[%clk 0:00:25.1]}
22... Rxb4 {[%clk 0:01:14.7]} 23. d4 {[%clk 0:00:20]} 23... Nc4 {[%clk
0:01:13.9]} 24. Qd3 {[%clk 0:00:11.9]} 24... Nxe3 {[%clk 0:01:14]} 25. Qxe3
{[%clk 0:00:12.5]} 25... Bxd4 {[%clk 0:01:12.2]} 26. Qf3 {[%clk 0:00:12.2]}
26... Qe7 {[%clk 0:01:03.4]} 27. Rd1 {[%clk 0:00:10.5]} 27... Be5 {[%clk
0:01:03.3]} 28. Kh1 {[%clk 0:00:04.1]} 28... Rfb8 {[%clk 0:01:02.4]} 29. Rf2
{[%clk 0:00:02.5]} 29... Rb3 {[%clk 0:01:02.2]} 30. Qg4 {[%clk 0:00:01.5]} 30...
Rxg3 {[%clk 0:01:01.8]} 31. Qe2 {[%clk 0:00:02.3]} 31... Rb2 {[%clk 0:00:49.3]}
32. Qf1 {[%clk 0:00:02.6]} 32... Rxf2 {[%clk 0:00:49]} 33. Qxf2 {[%clk
0:00:03.2]} 33... Ra3 {[%clk 0:00:48.2]} 34. Rb1 {[%clk 0:00:03]} 34... Kg7
{[%clk 0:00:46.7]} 35. Kg1 {[%clk 0:00:01.5]} 35... Bd4 {[%clk 0:00:46.5]} 0-1

[Event "Early-Titled-Tuesday-Blitz-April-16-2024"]
[Site "Chess.com"]
[Date "2024.04.16"]
[Round "4"]
[White "CrazyMartian"]
[Black "gau248"]
[Result "1-0"]
[WhiteElo "2372"]
[BlackElo "2571"]
[TimeControl "180+1"]
[EndTime "8:39:13 PDT"]
[Termination "CrazyMartian won by checkmate"]

1. d4 {[%clk 0:03:00.9]} 1... d5 {[%clk 0:02:59.1]} 2. c4 {[%clk 0:03:00.5]}
2... e6 {[%clk 0:02:59.3]} 3. Nc3 {[%clk 0:03:01]} 3... Nf6 {[%clk 0:02:58.8]}
4. cxd5 {[%clk 0:03:01.6]} 4... Nxd5 {[%clk 0:02:58.1]} 5. e4 {[%clk 0:03:01.3]}
5... Nxc3 {[%clk 0:02:58.5]} 6. bxc3 {[%clk 0:03:02.2]} 6... c5 {[%clk
0:02:57.9]} 7. a3 {[%clk 0:03:02]} 7... cxd4 {[%clk 0:02:55.9]} 8. cxd4 {[%clk
0:03:02.9]} 8... Be7 {[%clk 0:02:56.6]} 9. Nf3 {[%clk 0:03:03.4]} 9... O-O
{[%clk 0:02:55.5]} 10. Bc4 {[%clk 0:03:03]} 10... Nd7 {[%clk 0:02:55]} 11. O-O
{[%clk 0:03:02.4]} 11... b6 {[%clk 0:02:55.5]} 12. Qe2 {[%clk 0:03:02.4]} 12...
Bb7 {[%clk 0:02:55.5]} 13. Bb2 {[%clk 0:03:00.5]} 13... Rc8 {[%clk 0:02:55.5]}
14. Bb3 {[%clk 0:02:57.3]} 14... Nf6 {[%clk 0:02:55.2]} 15. Nd2 {[%clk
0:02:44.6]} 15... h6 {[%clk 0:02:52.1]} 16. Rfe1 {[%clk 0:02:43.2]} 16... Qd7
{[%clk 0:02:46.3]} 17. Rad1 {[%clk 0:02:41.3]} 17... Rfd8 {[%clk 0:02:45.9]} 18.
Qd3 {[%clk 0:02:30.8]} 18... e5 {[%clk 0:02:24.5]} 19. Nc4 {[%clk 0:02:10.5]}
19... Qb5 {[%clk 0:01:16.8]} 20. Nxe5 {[%clk 0:01:42]} 20... Qxd3 {[%clk
0:01:13.9]} 21. Rxd3 {[%clk 0:01:35.5]} 21... Bxe4 {[%clk 0:01:13.2]} 22. Nxf7
{[%clk 0:01:03]} 22... Bxd3 {[%clk 0:00:17.9]} 23. Nxd8+ {[%clk 0:01:01.7]}
23... Kf8 {[%clk 0:00:16.8]} 24. Ne6+ {[%clk 0:00:57.1]} 24... Kf7 {[%clk
0:00:17.1]} 25. Nc5+ {[%clk 0:00:41.7]} 25... Kf8 {[%clk 0:00:13]} 26. Nxd3
{[%clk 0:00:40.6]} 26... Rd8 {[%clk 0:00:01.4]} 27. Ne5 {[%clk 0:00:40]} 27...
Rc8 {[%clk 0:00:01.6]} 28. h3 {[%clk 0:00:39.5]} 28... Bd6 {[%clk 0:00:01.4]}
29. Ng6# {[%clk 0:00:36.8]} 1-0

[Event "Early-Titled-Tuesday-Blitz-April-16-2024"]
[Site "Chess.com"]
[Date "2024.04.16"]
[Round "4"]
[White "NigiriSushies"]
[Black "SaqoChess_Twitch"]
[Result "0-1"]
[WhiteElo "2409"]
[BlackElo "2655"]
[TimeControl "180+1"]
[EndTime "8:39:14 PDT"]
[Termination "SaqoChess_Twitch won on time"]

1. Nf3 {[%clk 0:03:00.9]} 1... d5 {[%clk 0:03:00.1]} 2. g3 {[%clk 0:03:00.3]}
2... e6 {[%clk 0:03:00.5]} 3. Bg2 {[%clk 0:03:01.2]} 3... Nf6 {[%clk 0:03:01.2]}
4. O-O {[%clk 0:03:01.5]} 4... Be7 {[%clk 0:03:02.1]} 5. b3 {[%clk 0:03:00.6]}
5... O-O {[%clk 0:03:03]} 6. Bb2 {[%clk 0:03:00.4]} 6... c5 {[%clk 0:03:03.5]}
7. d3 {[%clk 0:03:00.6]} 7... Nc6 {[%clk 0:03:03.6]} 8. Nbd2 {[%clk 0:03:01.2]}
8... b5 {[%clk 0:03:04.2]} 9. c4 {[%clk 0:02:59.2]} 9... bxc4 {[%clk 0:03:03.5]}
10. dxc4 {[%clk 0:03:00.1]} 10... a5 {[%clk 0:03:01.6]} 11. Qc2 {[%clk
0:02:58.2]} 11... a4 {[%clk 0:03:01.7]} 12. Ne5 {[%clk 0:02:49.8]} 12... Nxe5
{[%clk 0:03:01.1]} 13. Bxe5 {[%clk 0:02:50.7]} 13... Bb7 {[%clk 0:02:58.4]} 14.
e3 {[%clk 0:02:32.4]} 14... Qa5 {[%clk 0:02:56.9]} 15. Bc3 {[%clk 0:02:28.5]}
15... Qa6 {[%clk 0:02:56.2]} 16. h3 {[%clk 0:02:24]} 16... Rfd8 {[%clk
0:02:51.1]} 17. Kh2 {[%clk 0:02:10.3]} 17... d4 {[%clk 0:02:50.4]} 18. exd4
{[%clk 0:02:03.2]} 18... Bxg2 {[%clk 0:02:48.4]} 19. Kxg2 {[%clk 0:02:00.6]}
19... cxd4 {[%clk 0:02:49.1]} 20. Bb2 {[%clk 0:01:58.2]} 20... a3 {[%clk
0:02:44.2]} 21. Bc1 {[%clk 0:01:53.8]} 21... e5 {[%clk 0:02:44.4]} 22. Ne4
{[%clk 0:01:51.1]} 22... Qc6 {[%clk 0:02:42.8]} 23. f3 {[%clk 0:01:50.4]} 23...
Nxe4 {[%clk 0:02:42.3]} 24. Qxe4 {[%clk 0:01:51.3]} 24... Qxe4 {[%clk
0:02:42.1]} 25. fxe4 {[%clk 0:01:52.2]} 25... f6 {[%clk 0:02:42.8]} 26. Rd1
{[%clk 0:01:39]} 26... Bb4 {[%clk 0:02:41.9]} 27. Bd2 {[%clk 0:01:38.5]} 27...
Bxd2 {[%clk 0:02:35.4]} 28. Rxd2 {[%clk 0:01:39.4]} 28... Rdc8 {[%clk
0:02:35.2]} 29. Rd3 {[%clk 0:01:29.7]} 29... Kf7 {[%clk 0:02:34.3]} 30. Rf1
{[%clk 0:01:24.9]} 30... Ke6 {[%clk 0:02:34.4]} 31. Rf2 {[%clk 0:01:20.7]} 31...
Kd6 {[%clk 0:02:34.4]} 32. Rf1 {[%clk 0:01:19.5]} 32... Kc5 {[%clk 0:02:34.6]}
33. Rf2 {[%clk 0:01:19.9]} 33... Kb4 {[%clk 0:02:34.9]} 34. g4 {[%clk
0:01:17.4]} 34... Ra7 {[%clk 0:02:35.1]} 35. Rf5 {[%clk 0:01:13.2]} 35... Rf7
{[%clk 0:02:34.2]} 36. Kf1 {[%clk 0:00:57.9]} 36... g6 {[%clk 0:02:33]} 37. Rf2
{[%clk 0:00:57.6]} 37... Rcf8 {[%clk 0:02:33.2]} 38. Rdf3 {[%clk 0:00:54]} 38...
f5 {[%clk 0:02:06.3]} 39. Ke2 {[%clk 0:00:36]} 39... f4 {[%clk 0:01:56.6]} 40.
h4 {[%clk 0:00:20.6]} 40... Rc7 {[%clk 0:01:48.4]} 41. Kd3 {[%clk 0:00:20.3]}
41... Rb8 {[%clk 0:01:44.2]} 42. Rc2 {[%clk 0:00:19.2]} 42... Kc5 {[%clk
0:01:44.3]} 43. Rg2 {[%clk 0:00:15.9]} 43... Rb4 {[%clk 0:01:44.2]} 44. Rc2
{[%clk 0:00:15.7]} 44... Rcb7 {[%clk 0:01:44.2]} 45. Rcf2 {[%clk 0:00:10.9]}
45... Rb8 {[%clk 0:01:34.1]} 46. Kc2 {[%clk 0:00:10.2]} 46... h6 {[%clk
0:01:31.3]} 47. Rd3 {[%clk 0:00:08]} 47... Rxc4+ {[%clk 0:01:30.1]} 48. bxc4
{[%clk 0:00:05.3]} 48... Rb2+ {[%clk 0:01:31]} 49. Kc1 {[%clk 0:00:05.9]} 49...
Rxf2 {[%clk 0:01:31.9]} 50. Rxa3 {[%clk 0:00:06.3]} 50... Kxc4 {[%clk
0:01:29.1]} 51. Ra6 {[%clk 0:00:05.8]} 51... d3 {[%clk 0:01:29]} 52. Rxg6 {[%clk
0:00:04.6]} 52... Rxa2 {[%clk 0:01:27.2]} 53. Rxh6 {[%clk 0:00:04.3]} 53... f3
{[%clk 0:01:27.5]} 54. Rf6 {[%clk 0:00:02]} 54... f2 {[%clk 0:01:27.9]} 55. h5
{[%clk 0:00:01.9]} 55... Kc3 {[%clk 0:01:26.8]} 0-1

[Event "Early-Titled-Tuesday-Blitz-April-16-2024"]
[Site "Chess.com"]
[Date "2024.04.16"]
[Round "4"]
[White "littlepinkyboy"]
[Black "janhelmer03"]
[Result "1-0"]
[WhiteElo "2685"]
[BlackElo "2422"]
[TimeControl "180+1"]
[EndTime "8:39:16 PDT"]
[Termination "littlepinkyboy won on time"]

1. e4 {[%clk 0:03:00.5]} 1... c5 {[%clk 0:02:54.3]} 2. Nf3 {[%clk 0:02:45]} 2...
d6 {[%clk 0:02:40.7]} 3. d4 {[%clk 0:02:45.4]} 3... cxd4 {[%clk 0:02:41.3]} 4.
Nxd4 {[%clk 0:02:46.3]} 4... Nf6 {[%clk 0:02:42]} 5. Nc3 {[%clk 0:02:46.3]} 5...
g6 {[%clk 0:02:42.6]} 6. Be3 {[%clk 0:02:45.1]} 6... Bg7 {[%clk 0:02:42.9]} 7.
f3 {[%clk 0:02:45.8]} 7... O-O {[%clk 0:02:43.5]} 8. Qd2 {[%clk 0:02:46.5]} 8...
Nc6 {[%clk 0:02:43.9]} 9. O-O-O {[%clk 0:02:47.2]} 9... d5 {[%clk 0:02:44.4]}
10. exd5 {[%clk 0:02:47.9]} 10... Nxd5 {[%clk 0:02:44.4]} 11. Nxc6 {[%clk
0:02:47.6]} 11... bxc6 {[%clk 0:02:45.3]} 12. Bd4 {[%clk 0:02:44.9]} 12... e5
{[%clk 0:02:45.4]} 13. Bc5 {[%clk 0:02:43.5]} 13... Re8 {[%clk 0:02:45.8]} 14.
Nxd5 {[%clk 0:02:13.2]} 14... cxd5 {[%clk 0:02:27.3]} 15. Qxd5 {[%clk
0:02:14.1]} 15... Qa5 {[%clk 0:00:55.4]} 16. Qxa8 {[%clk 0:01:39]} 16... Qxa2
{[%clk 0:00:54.4]} 17. Be3 {[%clk 0:01:31.8]} 17... Qa1+ {[%clk 0:00:43.5]} 18.
Kd2 {[%clk 0:01:30.9]} 18... Qxb2 {[%clk 0:00:43.1]} 19. Bd3 {[%clk 0:01:23.5]}
19... e4 {[%clk 0:00:42.6]} 20. Qc6 {[%clk 0:01:08.6]} 20... Qb4+ {[%clk
0:00:28.4]} 21. c3 {[%clk 0:00:52.4]} 21... Qb2+ {[%clk 0:00:18]} 22. Bc2 {[%clk
0:00:52.8]} 22... Rd8+ {[%clk 0:00:16.5]} 23. Ke1 {[%clk 0:00:53.5]} 23... Bxc3+
{[%clk 0:00:15.6]} 24. Kf1 {[%clk 0:00:53.8]} 24... Rxd1+ {[%clk 0:00:03.9]} 25.
Bxd1 {[%clk 0:00:54.7]} 25... Be6 {[%clk 0:00:02]} 26. Qa8+ {[%clk 0:00:43.8]}
26... Kg7 {[%clk 0:00:01.7]} 27. Qxe4 {[%clk 0:00:42.8]} 27... Bf5 {[%clk
0:00:02.1]} 28. Qc4 {[%clk 0:00:41.8]} 28... Qb1 {[%clk 0:00:01.7]} 29. Kf2
{[%clk 0:00:38.8]} 29... Bf6 {[%clk 0:00:01.3]} 30. Bd4 {[%clk 0:00:34.4]} 1-0